[Event "41st Jacques-Lemans-Open 2022"]
[Site "St. Veit/Glan"]
[Date "2022.07.14"]
[Round "7.22"]
[White "Praxmarer, Christian"]
[Black "Besner, Bernhard"]
[Result "0-1"]
[ECO "A03"]
[WhiteElo "1906"]
[BlackElo "2164"]
[Annotator "ChessBase"]
[PlyCount "114"]
[EventDate "2022.07.09"]
[EventType "swiss"]
[EventCountry "AUT"]
[SourceTitle "playchess.com"]
[Source "ChessBase"]
[SourceQuality "1"]
[TimeControl "40/5400+30:1800+30"]

1. f4 {[%emt 0:00:03]} d5 {[%emt 0:00:13]} 2. Nf3 {[%emt 0:00:10]} Bg4 {[%emt 0:00:29]} 3. e3 {[%emt 0:00:52]} e6 {[%emt 0:00:22]} 4. h3 {[%emt 0:00:36]} Bh5 {[%emt 0:04:13]} 5. c4 {[%emt 0:02:14]} Be7 {[%emt 0:01:36]} 6. Be2 {[%emt 0:14:14]} Bh4+ {[%emt 0:02:46]} 7. Nxh4 {[%emt 0:00:11]} Qxh4+ {[%emt 0:00:09]} 8. Kf1 {[%emt 0:00:05]} Nf6 {[%emt 0:01:12]} 9. Qe1 {[%emt 0:08:26]} Qxe1+ {[%emt 0:03:26]} 10. Kxe1 {[%emt 0:00:01]} Bxe2 {[%emt 0:00:42]} 11. Kxe2 {[%emt 0:00:01]} dxc4 {[%emt 0:01:01]} 12. Na3 {[%emt 0:16:23]} Ne4 {[%emt 0:01:36]} 13. Rd1 {[%emt 0:00:02]} Nd6 {[%emt 0:01:52]} 14. d4 {[%emt 0:00:28]} cxd3+ {[%emt 0:01:25]} 15. Rxd3 {[%emt 0:00:01]} Nd7 {[%emt 0:01:47]} 16. Bd2 {[%emt 0:00:50]} Nc5 {[%emt 0:01:18]} 17. Rd4 {[%emt 0:03:16]} O-O-O {[%emt 0:09:07]} 18. Bb4 {[%emt 0:09:07]} Nce4 {[%emt 0:01:15]} 19. Rc1 {[%emt 0:06:12]} Rd7 {[%emt 0:04:49]} 20. Kf3 {[%emt 0:01:15]} f5 {[%emt 0:00:53]} 21. Bxd6 {[%emt 0:07:16]} Nxd6 {[%emt 0:00:27]} 22. Nc4 {[%emt 0:01:00]} Nxc4 {[%emt 0:00:29]} 23. Rdxc4 {[%emt 0:00:24]} Rhd8 {[%emt 0:00:32]} 24. g4 {[%emt 0:00:22]} c6 {[%emt 0:00:27]} 25. b4 {[%emt 0:05:23]} Rd1 {[%emt 0:01:36]} 26. b5 {[%emt 0:01:29]} Rxc1 {[%emt 0:00:52]} 27. Rxc1 {[%emt 0:00:00]} Rd6 {[%emt 0:00:42]} 28. Rc3 {[%emt 0:01:24]} Kc7 {[%emt 0:02:44]} 29. e4 {[%emt 0:02:37]} g6 {[%emt 0:00:25]} 30. exf5 {[%emt 0:02:52]} exf5 {[%emt 0:01:00]} 31. Kg3 {[%emt 0:02:50]} Rd5 {[%emt 0:08:10]} 32. bxc6 {[%emt 0:01:30]} bxc6 {[%emt 0:00:42]} 33. Re3 {[%emt 0:03:24]} fxg4 {[%emt 0:10:30]} 34. hxg4 {[%emt 0:00:15]} c5 {[%emt 0:04:19]} 35. Kf3 {[%emt 0:03:10]} Rd7 {[%emt 0:01:58]} 36. Ra3 {[%emt 0:03:14]} Kc6 {[%emt 0:00:56]} 37. f5 {[%emt 0:00:15]} gxf5 {[%emt 0:01:24]} 38. gxf5 {[%emt 0:00:01]} c4 {[%emt 0:03:44]} 39. Ke4 {[%emt 0:00:39]} Kd6 {[%emt 0:10:32]} 40. Kd4 {[%emt 0:01:51]} Rc7 {[%emt 0:01:36]} 41. Ra6+ {[%emt 0:36:05]} Ke7 {[%emt 0:30:17]} 42. Rh6 {[%emt 0:00:00]} Kf8 {[%emt 0:00:00]} 43. Kc3 {[%emt 0:00:00]} Kg7 {[%emt 0:00:00]} 44. Re6 {[%emt 0:00:00]} h5 {[%emt 0:00:00]} 45. Rg6+ {[%emt 0:00:00]} Kh8 {[%emt 0:00:00]} 46. Rg3 {[%emt 0:00:00]} Rg7 {[%emt 0:00:00]} 47. Rh3 {[%emt 0:00:00]} Rg5 {[%emt 0:00:00]} 48. f6 {[%emt 0:00:00]} Kg8 {[%emt 0:00:00]} 49. Kxc4 {[%emt 0:00:00]} Kf7 {[%emt 0:00:00]} 50. Rf3 {[%emt 0:00:00]} h4 {[%emt 0:00:00]} 51. Rd3 {[%emt 0:02:20]} Kxf6 {[%emt 0:00:00]} 52. Rd6+ {[%emt 0:01:27]} Kf5 {[%emt 0:00:00]} 53. Kb5 {[%emt 0:01:04]} Rg6 {[%emt 0:03:23]} 54. Rd5+ {[%emt 0:00:29]} Kg4 {[%emt 0:00:53]} 55. Rd4+ {[%emt 0:00:15]} Kh5 {[%emt 0:00:16]} 56. Rd3 {[%emt 0:01:04]} Rg3 {[%emt 0:00:16]} 57. Rd5+ {[%emt 0:00:14]} Rg5 {[%emt 0:00:31]} 0-1

[Event "41st Jacques-Lemans-Open 2022"]
[Site "St. Veit/Glan"]
[Date "2022.07.14"]
[Round "7.23"]
[White "Tumanyan, Gor"]
[Black "Praznik, Anton"]
[Result "1/2-1/2"]
[ECO "C07"]
[WhiteElo "1884"]
[BlackElo "2137"]
[Annotator "ChessBase"]
[PlyCount "58"]
[EventDate "2022.07.09"]
[EventType "swiss"]
[EventCountry "AUT"]
[SourceTitle "playchess.com"]
[Source "ChessBase"]
[SourceQuality "1"]
[TimeControl "40/5400+30:1800+30"]

1. e4 {[%emt 0:00:02]} e6 {[%emt 0:04:23]} 2. d4 {[%emt 0:00:08]} d5 {[%emt 0:00:03]} 3. Nd2 {[%emt 0:00:07]} c5 {[%emt 0:02:40]} 4. Ngf3 {[%emt 0:03:52]} Nc6 {[%emt 0:00:45]} 5. c3 {[%emt 0:04:06]} cxd4 {[%emt 0:01:50]} 6. cxd4 {[%emt 0:02:11]} dxe4 {[%emt 0:01:00]} 7. Nxe4 {[%emt 0:00:15]} Nf6 {[%emt 0:03:38]} 8. Nxf6+ {[%emt 0:08:10]} gxf6 {[%emt 0:00:56]} 9. Bc4 {[%emt 0:15:41]} Bb4+ {[%emt 0:06:24]} 10. Bd2 {[%emt 0:00:44]} Qa5 {[%emt 0:00:24]} 11. O-O {[%emt 0:39:22]} Bxd2 {[%emt 0:36:12]} 12. Nxd2 {[%emt 0:04:45]} Qd8 {[%emt 0:17:30]} 13. Nb3 {[%emt 0:05:16]} O-O {[%emt 0:05:08]} 14. Re1 {[%emt 0:05:26]} Kh8 {[%emt 0:03:37]} 15. Qh5 {[%emt 0:01:55]} Rg8 {[%emt 0:07:35]} 16. Qxf7 {[%emt 0:02:10]} Rg7 {[%emt 0:00:17]} 17. Qh5 {[%emt 0:00:24]} e5 {[%emt 0:00:43]} 18. dxe5 {[%emt 0:00:46]} Bg4 {[%emt 0:00:40]} 19. Qh6 {[%emt 0:01:30]} Nxe5 {[%emt 0:00:20]} 20. Be2 {[%emt 0:00:45]} Bf3 {[%emt 0:04:30]} 21. Bf1 {[%emt 0:02:38]} Bxg2 22. Bxg2 Rxg2+ {[%emt 0:02:20]} 23. Kxg2 {[%emt 0:00:50]} Qd5+ {[%emt 0:00:29]} 24. Kf1 {[%emt 0:00:30]} Qh1+ {[%emt 0:00:12]} 25. Ke2 {[%emt 0:00:01]} Qf3+ {[%emt 0:00:01]} 26. Kf1 {[%emt 0:00:35]} Qh1+ {[%emt 0:00:16]} 27. Ke2 {[%emt 0:00:03]} Qf3+ {[%emt 0:00:03]} 28. Kf1 {[%emt 0:00:03]} Qh1+ {[%emt 0:00:12]} 29. Ke2 {[%emt 0:00:06]} Qf3+ {[%emt 0:00:01]} 1/2-1/2

[Event "41st Jacques-Lemans-Open 2022"]
[Site "St. Veit/Glan"]
[Date "2022.07.14"]
[Round "7.24"]
[White "Gruenwald, Simon"]
[Black "Hofstadler, Mario"]
[Result "0-1"]
[ECO "B15"]
[WhiteElo "1762"]
[BlackElo "2123"]
[Annotator "ChessBase"]
[PlyCount "64"]
[EventDate "2022.07.09"]
[EventType "swiss"]
[EventCountry "AUT"]
[SourceTitle "playchess.com"]
[Source "ChessBase"]
[SourceQuality "1"]
[TimeControl "40/5400+30:1800+30"]

1. e4 {[%emt 0:00:03]} c6 {[%emt 0:00:21]} 2. d4 {[%emt 0:00:19]} d5 {[%emt 0:00:06]} 3. Nc3 {[%emt 0:00:06]} dxe4 {[%emt 0:00:32]} 4. Nxe4 {[%emt 0:00:09]} Nf6 {[%emt 0:00:05]} 5. Nxf6+ {[%emt 0:00:08]} exf6 {[%emt 0:00:05]} 6. c3 {[%emt 0:00:08]} Bd6 {[%emt 0:00:46]} 7. Bd3 {[%emt 0:00:25]} O-O {[%emt 0:00:09]} 8. Qc2 {[%emt 0:00:04]} Re8+ {[%emt 0:00:59]} 9. Ne2 {[%emt 0:00:28]} h5 {[%emt 0:00:44]} 10. Be3 {[%emt 0:00:15]} Nd7 {[%emt 0:08:14]} 11. O-O-O {[%emt 0:00:52]} b5 {[%emt 0:06:35]} 12. d5 {[%emt 0:02:03]} c5 {[%emt 0:02:26]} 13. Bxb5 {[%emt 0:01:17]} Re5 {[%emt 0:03:54]} 14. Ng3 {[%emt 0:06:15]} Nb6 {[%emt 0:29:11]} 15. Bc6 {[%emt 0:15:10]} Rb8 {[%emt 0:04:06]} 16. Bf4 {[%emt 0:34:47]} Nc4 {[%emt 0:01:31]} 17. Bxe5 {[%emt 0:07:20]} Bxe5 {[%emt 0:06:00]} 18. Ne2 {[%emt 0:01:35]} Rxb2 {[%emt 0:02:58]} 19. Qxb2 {[%emt 0:00:08]} Nxb2 {[%emt 0:00:07]} 20. Kxb2 {[%emt 0:00:19]} Qb6+ {[%emt 0:00:32]} 21. Kc2 {[%emt 0:04:52]} Qa6 {[%emt 0:12:07]} 22. Kd2 {[%emt 0:02:37]} Qxa2+ {[%emt 0:03:42]} 23. Ke3 {[%emt 0:00:29]} Bd6 {[%emt 0:04:47]} 24. Ra1 {[%emt 0:02:59]} Qc2 {[%emt 0:00:50]} 25. Rhc1 {[%emt 0:03:38]} Qf5 {[%emt 0:00:38]} 26. f4 {[%emt 0:01:22]} g5 {[%emt 0:00:36]} 27. g3 {[%emt 0:00:35]} c4 {[%emt 0:01:41]} 28. Rd1 {[%emt 0:03:34]} Bc5+ {[%emt 0:00:12]} 29. Nd4 {[%emt 0:00:32]} gxf4+ {[%emt 0:00:08]} 30. gxf4 {[%emt 0:01:09]} Qh3+ {[%emt 0:00:19]} 31. Kf2 {[%emt 0:03:06]} Qxc3 {[%emt 0:02:26]} 32. Rg1+ {[%emt 0:00:29]} Kh8 {[%emt 0:01:29]} 0-1

[Event "41st Jacques-Lemans-Open 2022"]
[Site "St. Veit/Glan"]
[Date "2022.07.14"]
[Round "7.25"]
[White "Zoernpfenning, Siegfried"]
[Black "Kempe, Caius Emilian"]
[Result "1/2-1/2"]
[ECO "A45"]
[WhiteElo "2114"]
[BlackElo "1877"]
[Annotator "ChessBase"]
[PlyCount "48"]
[EventDate "2022.07.09"]
[EventType "swiss"]
[EventCountry "AUT"]
[SourceTitle "playchess.com"]
[Source "ChessBase"]
[SourceQuality "1"]
[TimeControl "40/5400+30:1800+30"]

1. d4 {[%emt 0:00:03]} Nf6 {[%emt 0:00:05]} 2. Bf4 {[%emt 0:00:06]} g6 {[%emt 0:00:12]} 3. Nc3 {[%emt 0:00:12]} d5 {[%emt 0:00:08]} 4. Qd2 {[%emt 0:00:59]} Bg7 {[%emt 0:00:07]} 5. Bh6 {[%emt 0:02:36]} O-O {[%emt 0:00:10]} 6. Bxg7 {[%emt 0:02:10]} Kxg7 {[%emt 0:00:01]} 7. f3 {[%emt 0:00:16]} c5 {[%emt 0:08:30]} 8. e3 {[%emt 0:01:29]} cxd4 {[%emt 0:02:16]} 9. exd4 {[%emt 0:00:13]} Nc6 {[%emt 0:00:16]} 10. O-O-O {[%emt 0:14:16]} Na5 {[%emt 0:04:58]} 11. h4 {[%emt 0:03:53]} Nc4 {[%emt 0:03:08]} 12. Bxc4 {[%emt 0:00:19]} dxc4 {[%emt 0:00:01]} 13. h5 {[%emt 0:00:44]} Qa5 {[%emt 0:05:16]} 14. hxg6 {[%emt 0:03:34]} fxg6 {[%emt 0:00:15]} 15. Qh6+ {[%emt 0:03:58]} Kg8 {[%emt 0:00:08]} 16. Nh3 {[%emt 0:01:27]} Bxh3 {[%emt 0:01:46]} 17. Qxh3 {[%emt 0:00:21]} Rf7 {[%emt 0:00:17]} 18. Rhe1 {[%emt 0:03:23]} b5 {[%emt 0:06:07]} 19. Re5 {[%emt 0:02:11]} a6 {[%emt 0:00:32]} 20. Qe6 {[%emt 0:00:52]} Qc7 {[%emt 0:03:12]} 21. a3 {[%emt 0:08:48]} Kg7 {[%emt 0:03:23]} 22. Ne4 {[%emt 0:02:02]} Nxe4 {[%emt 0:09:13]} 23. Rxe4 {[%emt 0:00:10]} Ra7 {[%emt 0:01:19]} 24. Rde1 {[%emt 0:06:47]} Qd6 {[%emt 0:07:32]} 1/2-1/2

[Event "41st Jacques-Lemans-Open 2022"]
[Site "St. Veit/Glan"]
[Date "2022.07.14"]
[Round "7.26"]
[White "Hinteregger, Arthur"]
[Black "Ljubic, Luka"]
[Result "1-0"]
[ECO "B31"]
[WhiteElo "1993"]
[BlackElo "1768"]
[Annotator "ChessBase"]
[PlyCount "55"]
[EventDate "2022.07.09"]
[EventType "swiss"]
[EventCountry "AUT"]
[SourceTitle "playchess.com"]
[Source "ChessBase"]
[SourceQuality "1"]
[TimeControl "40/5400+30:1800+30"]

1. e4 {[%emt 0:00:10]} c5 {[%emt 0:00:08]} 2. Nf3 {[%emt 0:00:09]} Nc6 {[%emt 0:00:06]} 3. Bb5 {[%emt 0:00:07]} g6 {[%emt 0:00:17]} 4. Bxc6 {[%emt 0:00:59]} dxc6 {[%emt 0:00:33]} 5. O-O {[%emt 0:00:37]} Bg7 {[%emt 0:00:32]} 6. d3 {[%emt 0:00:20]} Qc7 {[%emt 0:03:00]} 7. Nbd2 {[%emt 0:01:22]} Nf6 {[%emt 0:01:22]} 8. a4 {[%emt 0:03:39]} O-O {[%emt 0:05:27]} 9. Re1 {[%emt 0:05:30]} Rd8 {[%emt 0:03:40]} 10. Ra2 {[%emt 0:04:55]} Be6 {[%emt 0:17:25]} 11. b3 {[%emt 0:00:12]} h6 {[%emt 0:00:51]} 12. Qe2 {[%emt 0:07:32]} b5 {[%emt 0:13:22]} 13. Bb2 {[%emt 0:07:22]} c4 {[%emt 0:05:38]} 14. dxc4 {[%emt 0:03:17]} bxa4 {[%emt 0:06:50]} 15. Rxa4 {[%emt 0:00:51]} c5 {[%emt 0:12:16]} 16. Bc3 {[%emt 0:02:20]} Qf4 {[%emt 0:07:01]} 17. Be5 {[%emt 0:05:55]} Qg4 {[%emt 0:00:22]} 18. Nf1 {[%emt 0:01:34]} Bc8 {[%emt 0:06:21]} 19. Ra5 {[%emt 0:07:25]} Bb7 {[%emt 0:01:04]} 20. h3 {[%emt 0:10:32]} Qc8 {[%emt 0:05:27]} 21. Ng3 {[%emt 0:01:34]} a6 {[%emt 0:04:27]} 22. Qe3 {[%emt 0:01:35]} Qe6 {[%emt 0:02:04]} 23. Rxc5 {[%emt 0:03:22]} Kh7 {[%emt 0:02:30]} 24. Ra5 {[%emt 0:01:32]} Rd7 {[%emt 0:01:10]} 25. c3 {[%emt 0:05:59]} Rad8 {[%emt 0:00:09]} 26. Nd4 {[%emt 0:00:27]} Qb6 {[%emt 0:00:37]} 27. b4 {[%emt 0:00:19]} Ba8 {[%emt 0:00:49]} 28. c5 {[%emt 0:01:06]} 1-0

[Event "41st Jacques-Lemans-Open 2022"]
[Site "St. Veit/Glan"]
[Date "2022.07.14"]
[Round "7.27"]
[White "Burbach, Brunel Baron"]
[Black "Raeke, Philipp"]
[Result "0-1"]
[ECO "B09"]
[WhiteElo "1820"]
[BlackElo "1908"]
[Annotator "ChessBase"]
[PlyCount "52"]
[EventDate "2022.07.09"]
[EventType "swiss"]
[EventCountry "AUT"]
[SourceTitle "playchess.com"]
[Source "ChessBase"]
[SourceQuality "1"]
[TimeControl "40/5400+30:1800+30"]

1. e4 {[%emt 0:00:30]} d6 {[%emt 0:01:25]} 2. d4 {[%emt 0:00:20]} Nf6 {[%emt 0:00:12]} 3. Nc3 {[%emt 0:00:18]} g6 {[%emt 0:00:12]} 4. f4 {[%emt 0:00:26]} Bg7 {[%emt 0:00:24]} 5. e5 {[%emt 0:09:32]} dxe5 {[%emt 0:02:07]} 6. fxe5 {[%emt 0:00:07]} Nd5 {[%emt 0:01:07]} 7. Nf3 {[%emt 0:05:46]} O-O {[%emt 0:07:17]} 8. Bc4 {[%emt 0:01:56]} Be6 {[%emt 0:08:19]} 9. Nxd5 {[%emt 0:09:12]} Bxd5 {[%emt 0:00:28]} 10. Be2 {[%emt 0:10:50]} c5 {[%emt 0:06:11]} 11. c3 {[%emt 0:09:05]} cxd4 {[%emt 0:05:51]} 12. cxd4 {[%emt 0:00:14]} Nc6 {[%emt 0:00:36]} 13. Be3 {[%emt 0:01:49]} Qb6 {[%emt 0:03:41]} 14. b3 {[%emt 0:05:06]} Bxf3 {[%emt 0:05:30]} 15. Bxf3 {[%emt 0:01:39]} Nxe5 {[%emt 0:00:40]} 16. O-O {[%emt 0:09:26]} Nxf3+ {[%emt 0:03:01]} 17. Qxf3 {[%emt 0:01:04]} Bxd4 {[%emt 0:02:35]} 18. Bxd4 {[%emt 0:00:28]} Qxd4+ {[%emt 0:00:05]} 19. Kh1 {[%emt 0:00:07]} Qb6 {[%emt 0:03:02]} 20. Rad1 {[%emt 0:00:24]} Rac8 {[%emt 0:04:57]} 21. Rd7 {[%emt 0:02:35]} Rc7 {[%emt 0:00:32]} 22. Rfd1 {[%emt 0:00:44]} Rfc8 {[%emt 0:03:42]} 23. Qg4 {[%emt 0:03:56]} Rxd7 {[%emt 0:06:59]} 24. Qxd7 {[%emt 0:00:10]} Rc7 {[%emt 0:01:49]} 25. Qe8+ {[%emt 0:02:37]} Kg7 {[%emt 0:00:05]} 26. Rf1 {[%emt 0:00:30]} Qf2 {[%emt 0:02:22]} 0-1

[Event "41st Jacques-Lemans-Open 2022"]
[Site "St. Veit/Glan"]
[Date "2022.07.14"]
[Round "7.28"]
[White "Hofbauer, Peter"]
[Black "Novosel, Lovro"]
[Result "0-1"]
[ECO "B22"]
[WhiteElo "1986"]
[BlackElo "2255"]
[Annotator "ChessBase"]
[PlyCount "88"]
[EventDate "2022.07.09"]
[EventType "swiss"]
[EventCountry "AUT"]
[SourceTitle "playchess.com"]
[Source "ChessBase"]
[SourceQuality "1"]
[TimeControl "40/5400+30:1800+30"]

1. e4 {[%emt 0:00:44]} c5 {[%emt 0:00:05]} 2. c3 {[%emt 0:00:19]} d5 {[%emt 0:00:04]} 3. exd5 {[%emt 0:00:08]} Qxd5 {[%emt 0:00:05]} 4. d4 {[%emt 0:00:24]} Nc6 {[%emt 0:00:13]} 5. Nf3 {[%emt 0:00:42]} e6 {[%emt 0:00:33]} 6. Be2 {[%emt 0:00:54]} Nf6 {[%emt 0:00:08]} 7. O-O {[%emt 0:00:35]} Be7 {[%emt 0:00:10]} 8. c4 {[%emt 0:02:05]} Qd8 {[%emt 0:01:54]} 9. dxc5 {[%emt 0:04:28]} Qxd1 {[%emt 0:00:54]} 10. Rxd1 {[%emt 0:00:29]} Bxc5 {[%emt 0:11:45]} 11. Nc3 {[%emt 0:01:26]} b6 {[%emt 0:00:59]} 12. Bf4 {[%emt 0:04:07]} Bb7 {[%emt 0:12:30]} 13. a3 {[%emt 0:04:27]} O-O {[%emt 0:11:02]} 14. b4 {[%emt 0:00:27]} Be7 {[%emt 0:00:06]} 15. Nb5 {[%emt 0:16:12]} Rad8 {[%emt 0:14:08]} 16. Bc7 {[%emt 0:06:40]} Rc8 {[%emt 0:04:26]} 17. Bd6 {[%emt 0:00:39]} Rfe8 {[%emt 0:05:35]} 18. Bxe7 {[%emt 0:02:14]} Rxe7 {[%emt 0:00:11]} 19. Nd6 {[%emt 0:00:36]} Rb8 {[%emt 0:00:19]} 20. Nxb7 {[%emt 0:01:24]} Rexb7 {[%emt 0:00:08]} 21. Rd6 {[%emt 0:06:18]} Rc7 {[%emt 0:00:35]} 22. Rad1 {[%emt 0:02:46]} Kf8 {[%emt 0:00:39]} 23. b5 {[%emt 0:08:48]} Na5 {[%emt 0:01:17]} 24. Ne5 {[%emt 0:00:38]} Rbc8 {[%emt 0:03:14]} 25. g4 {[%emt 0:01:22]} Ne4 {[%emt 0:05:26]} 26. Rd8+ {[%emt 0:03:12]} Rxd8 {[%emt 0:00:30]} 27. Rxd8+ {[%emt 0:00:06]} Ke7 {[%emt 0:00:03]} 28. Rg8 {[%emt 0:02:13]} Kf6 {[%emt 0:03:11]} 29. f4 {[%emt 0:01:07]} g5 {[%emt 0:01:30]} 30. Nd3 {[%emt 0:06:53]} gxf4 {[%emt 0:01:03]} 31. Nxf4 {[%emt 0:00:39]} Nxc4 {[%emt 0:00:37]} 32. h4 {[%emt 0:04:54]} Ke5 {[%emt 0:02:01]} 33. Nd3+ {[%emt 0:00:32]} Kd4 {[%emt 0:00:26]} 34. Nb4 {[%emt 0:00:57]} Ne5 {[%emt 0:00:53]} 35. Nc6+ Nxc6 {[%emt 0:00:36]} 36. bxc6 {[%emt 0:04:57]} Rxc6 {[%emt 0:01:08]} 37. Bb5 {[%emt 0:05:15]} Rc1+ {[%emt 0:00:26]} 38. Kg2 {[%emt 0:00:05]} Ke3 {[%emt 0:04:16]} 39. Rg7 {[%emt 0:02:05]} f5 {[%emt 0:02:40]} 40. g5 {[%emt 0:01:26]} Rc2+ {[%emt 0:01:00]} 41. Kg1 {[%emt 0:30:49]} f4 {[%emt 0:30:15]} 42. Rxh7 {[%emt 0:00:16]} f3 {[%emt 0:01:43]} 43. Rd7 {[%emt 0:00:47]} Rg2+ {[%emt 0:00:11]} 44. Kf1 {[%emt 0:00:22]} Ng3+ {[%emt 0:00:05]} 0-1

[Event "41st Jacques-Lemans-Open 2022"]
[Site "St. Veit/Glan"]
[Date "2022.07.15"]
[Round "7.29"]
[White "Kienboeck, Benjamin"]
[Black "Bratko, Alexander"]
[Result "1-0"]
[ECO "B12"]
[WhiteElo "2151"]
[BlackElo "1982"]
[Annotator "ChessBase"]
[PlyCount "143"]
[EventDate "2022.07.09"]
[EventType "swiss"]
[EventCountry "AUT"]
[SourceTitle "playchess.com"]
[Source "ChessBase"]
[SourceQuality "1"]
[TimeControl "40/5400+30:1800+30"]

1. e4 {[%emt 0:00:07]} c6 {[%emt 0:00:02]} 2. d4 {[%emt 0:00:15]} d5 {[%emt 0:00:04]} 3. e5 {[%emt 0:00:10]} Bf5 {[%emt 0:00:02]} 4. c4 {[%emt 0:01:36]} e6 {[%emt 0:00:39]} 5. Nc3 {[%emt 0:00:10]} Ne7 {[%emt 0:00:06]} 6. a3 {[%emt 0:00:13]} Nd7 {[%emt 0:02:12]} 7. cxd5 {[%emt 0:00:09]} cxd5 {[%emt 0:04:49]} 8. h4 {[%emt 0:03:34]} h5 {[%emt 0:05:16]} 9. Be2 {[%emt 0:14:37]} Nc6 {[%emt 0:05:44]} 10. Be3 {[%emt 0:10:15]} Be7 {[%emt 0:09:28]} 11. Nf3 {[%emt 0:01:30]} a6 {[%emt 0:01:24]} 12. Bd3 {[%emt 0:01:36]} Bg4 {[%emt 0:03:06]} 13. Ne2 {[%emt 0:03:47]} Bxf3 {[%emt 0:05:18]} 14. gxf3 {[%emt 0:00:30]} Qb6 {[%emt 0:03:41]} 15. Qd2 {[%emt 0:02:25]} O-O-O {[%emt 0:08:29]} 16. O-O {[%emt 0:14:03]} Kb8 {[%emt 0:05:19]} 17. b4 {[%emt 0:00:57]} a5 {[%emt 0:16:09]} 18. Rfb1 {[%emt 0:05:55]} a4 {[%emt 0:02:03]} 19. Qd1 {[%emt 0:03:37]} Bxh4 {[%emt 0:02:33]} 20. b5 {[%emt 0:03:08]} Na5 {[%emt 0:01:31]} 21. Nc3 {[%emt 0:00:56]} Rc8 {[%emt 0:03:47]} 22. Nxa4 {[%emt 0:01:53]} Qd8 {[%emt 0:02:09]} 23. Kf1 {[%emt 0:12:55]} Be7 {[%emt 0:01:09]} 24. Rc1 {[%emt 0:00:39]} Rxc1 {[%emt 0:01:58]} 25. Rxc1 {[%emt 0:00:01]} Nb6 {[%emt 0:01:25]} 26. Nxb6 {[%emt 0:03:34]} Qxb6 {[%emt 0:00:05]} 27. Qa4 {[%emt 0:00:31]} Rc8 {[%emt 0:01:17]} 28. Rxc8+ {[%emt 0:09:32]} Kxc8 {[%emt 0:00:06]} 29. Bd2 {[%emt 0:00:20]} Bd8 {[%emt 0:01:29]} 30. Qb4 {[%emt 0:02:50]} Qc7 {[%emt 0:01:01]} 31. Ke2 {[%emt 0:01:31]} b6 {[%emt 0:00:34]} 32. Qa4 {[%emt 0:00:31]} g6 {[%emt 0:02:30]} 33. Qd1 {[%emt 0:02:10]} Nc4 {[%emt 0:02:00]} 34. Bb4 {[%emt 0:00:46]} Nb2 {[%emt 0:01:32]} 35. Qc2 {[%emt 0:00:30]} Nxd3 {[%emt 0:01:03]} 36. Qxc7+ {[%emt 0:00:34]} Kxc7 {[%emt 0:00:55]} 37. Kxd3 {[%emt 0:00:00]} Kd7 {[%emt 0:01:55]} 38. Ke3 {[%emt 0:00:46]} Be7 {[%emt 0:01:16]} 39. Bxe7 {[%emt 0:00:01]} Kxe7 {[%emt 0:00:09]} 40. f4 {[%emt 0:00:53]} Kd7 {[%emt 0:00:49]} 41. Kf3 {[%emt 0:03:28]} Kd8 {[%emt 0:00:29]} 42. a4 {[%emt 0:00:56]} Kd7 {[%emt 0:00:47]} 43. Kg3 {[%emt 0:00:12]} Kd8 {[%emt 0:00:48]} 44. Kh4 {[%emt 0:00:08]} Kd7 {[%emt 0:01:55]} 45. Kg5 {[%emt 0:00:12]} Kc7 {[%emt 0:01:01]} 46. f5 {[%emt 0:08:31]} Kd7 {[%emt 0:14:52]} 47. f6 {[%emt 0:17:09]} Kd8 {[%emt 0:02:39]} 48. f3 {[%emt 0:01:47]} Kd7 {[%emt 0:01:40]} 49. f4 {[%emt 0:00:22]} Ke8 {[%emt 0:00:40]} 50. Kh6 {[%emt 0:02:34]} h4 {[%emt 0:01:16]} 51. a5 {[%emt 0:00:09]} bxa5 {[%emt 0:12:00]} 52. b6 {[%emt 0:00:22]} Kd7 {[%emt 0:00:08]} 53. Kg7 {[%emt 0:00:07]} h3 {[%emt 0:01:07]} 54. b7 {[%emt 0:00:52]} Kc7 {[%emt 0:00:10]} 55. Kxf7 {[%emt 0:00:17]} h2 {[%emt 0:00:31]} 56. Kxe6 {[%emt 0:01:22]} h1=Q {[%emt 0:00:29]} 57. b8=Q+ {[%emt 0:00:13]} Kxb8 {[%emt 0:00:12]} 58. f7 {[%emt 0:00:06]} Qh8 {[%emt 0:02:55]} 59. Ke7 {[%emt 0:00:10]} Qg7 {[%emt 0:00:43]} 60. Ke8 {[%emt 0:00:14]} Kc7 {[%emt 0:00:33]} 61. e6 {[%emt 0:00:22]} a4 {[%emt 0:00:24]} 62. f8=Q {[%emt 0:00:57]} Qxf8+ {[%emt 0:00:27]} 63. Kxf8 {[%emt 0:00:03]} a3 {[%emt 0:00:14]} 64. e7 {[%emt 0:00:03]} a2 {[%emt 0:00:06]} 65. e8=Q {[%emt 0:00:03]} a1=Q {[%emt 0:00:08]} 66. Qe5+ {[%emt 0:00:50]} Kc6 {[%emt 0:00:40]} 67. Qe6+ {[%emt 0:00:18]} Kc7 {[%emt 0:01:10]} 68. Qxd5 {[%emt 0:00:11]} Qf1 {[%emt 0:00:34]} 69. Qe5+ {[%emt 0:00:29]} Kd7 {[%emt 0:00:28]} 70. d5 {[%emt 0:00:30]} Qh3 {[%emt 0:00:35]} 71. Qe7+ {[%emt 0:00:08]} Kc8 {[%emt 0:00:24]} 72. Qe6+ {[%emt 0:00:05]} 1-0